bitfinex/quotes_SOLUSD_20251223
["timestamp","ask_amount","ask_price","bid_price","bid_amount"]
[1766529317522,0.56,123.84,123.81,16.64102299]
[1766529319019,0.56,123.84,123.81,17.31102299]
[1766529321726,0.56,123.84,123.81,15.41]
[1766529321945,0.56,123.84,123.81,17.31102299]
[1766529323925,0.56,123.84,123.81,15.41]
[1766529324310,0.56,123.82,123.8,14.74]
[1766529324830,2.46102299,123.83,123.8,15.41]
[1766529327021,2.46102299,123.83,123.77,22.09898294]
[1766529327022,2.46102299,123.82,123.78,8.07870728]
[1766529327206,0.56,123.81,123.78,0.67]
[1766529327414,0.56,123.81,123.79,14.74]
[1766529327703,9.97757983,123.82,123.79,14.74]
[1766529327916,10.53757983,123.82,123.79,15.41]
[1766529329627,30.16817908,123.82,123.76,8.08015513]
[1766529329833,30.16817908,123.82,123.76,8.75015513]
[1766529329834,2.46102299,123.8,123.76,8.75015513]
[1766529330337,2.46102299,123.8,123.77,0.67]
[1766529332220,10.53872712,123.8,123.77,0.67]
[1766529332625,10.53872712,123.8,123.76,15.41]
[1766529334036,1.90102299,123.79,123.76,15.41]
[1766529334637,10.53872712,123.8,123.76,15.41]
[1766529338207,0.56,123.8,123.77,0.7]
[1766529340738,0.56,123.8,123.77,2.60102299]
[1766529341840,0.56,123.8,123.76,22.81996359]
[1766529342034,10.53870296,123.8,123.76,15.44]
[1766529342237,8.63767997,123.8,123.76,17.34102299]
[1766529343245,8.63767997,123.8,123.76,25.42114322]
[1766529345945,0.56,123.79,123.76,15.44]
[1766529347147,0.56,123.79,123.75,0.8]
[1766529347351,0.56,123.78,123.75,0.1]
[1766529348043,8.63930025,123.78,123.75,0.1]
[1766529348247,0.56,123.77,123.75,0.1]
[1766529349754,8.63997979,123.77,123.75,0.1]
[1766529353156,30.54741884,123.77,123.7,10.43767296]
[1766529353361,2.36102299,123.76,123.72,0.7]
[1766529354959,0.46,123.74,123.7,9.98500201]
[1766529355261,0.46,123.74,123.7,10.68500201]
[1766529355466,0.46,123.74,123.71,0.7]
[1766529359761,8.54173585,123.74,123.71,0.7]
[1766529360263,2.36102299,123.73,123.69,0.7]
[1766529361347,10.44353937,123.73,123.69,0.7]
[1766529362140,28.74780208,123.73,123.69,0.7]
[1766529362338,2.36102299,123.72,123.69,0.7]
[1766529362538,0.46,123.71,123.68,0.1]
[1766529362833,0.46,123.7,123.68,0.1]
[1766529363053,0.36,123.68,123.67,3.37573405]
[1766529363274,8.34538163,123.68,123.65,0.1]
[1766529363476,0.26,123.67,123.65,0.1]
[1766529364046,8.08538163,123.68,123.65,0.1]
[1766529364246,0.26,123.68,123.65,0.8]
[1766529365572,8.08524663,123.69,123.65,0.8]
[1766529365759,10.61392993,123.69,123.65,0.8]
[1766529365961,8.71290694,123.69,123.65,0.8]
[1766529366162,10.61392993,123.69,123.65,0.8]
[1766529366675,2.16102299,123.68,123.65,0.8]
[1766529367254,10.24695374,123.68,123.65,0.8]
[1766529367466,8.34593075,123.68,123.65,0.8]
[1766529367667,10.24695374,123.68,123.65,0.8]
[1766529367968,11.3245605,123.68,123.65,0.8]
[1766529368158,2.97862975,123.67,123.65,0.8]
[1766529368976,2.97862975,123.67,123.65,0.1]
[1766529369361,11.3245605,123.68,123.65,0.1]
[1766529369874,8.34593075,123.68,123.65,0.1]
[1766529370171,11.4312344,123.69,123.65,0.78]
[1766529370476,8.34494434,123.69,123.65,0.78]
[1766529370770,11.32357409,123.69,123.65,0.78]
[1766529373068,11.32416514,123.68,123.65,0.1]
[1766529373363,8.34553539,123.68,123.65,0.1]
[1766529373562,11.32416514,123.68,123.65,0.1]
[1766529374488,11.69182545,123.68,123.65,0.1]
[1766529375751,11.32416514,123.68,123.65,0.1]
[1766529376484,3.50629006,123.67,123.63,0.78]
[1766529376782,3.13862975,123.67,123.63,0.78]
[1766529377459,0.16,123.67,123.63,0.78]
[1766529377784,11.06516716,123.67,123.63,0.78]
[1766529377953,11.22516716,123.67,123.63,0.78]
[1766529378154,8.24653741,123.67,123.63,0.78]
[1766529379867,2.97862975,123.66,123.61,2.97862975]
[1766529380073,10.43767296,123.64,123.62,0.68]
[1766529385391,18.52584513,123.64,123.62,0.68]
[1766529387370,0.06,123.66,123.62,2.97862975]
[1766529387575,8.08700355,123.66,123.63,0.68]
[1766529388095,11.0656333,123.66,123.63,0.68]
[1766529388300,8.08700355,123.66,123.63,0.68]
[1766529388499,11.0656333,123.66,123.63,0.68]
[1766529388700,11.1256333,123.66,123.63,0.68]
[1766529390111,8.14700355,123.66,123.63,0.68]
[1766529390410,11.1256333,123.66,123.63,0.68]
[1766529391103,8.08700355,123.66,123.63,0.68]
[1766529391405,8.14700355,123.66,123.63,0.68]
[1766529393209,0.06,123.65,123.59,14.76]
[1766529393385,0.06,123.65,123.61,0.68]
[1766529393587,0.06,123.65,123.62,0.68]
[1766529394606,8.14700355,123.66,123.63,0.68]
[1766529395478,0.06,123.65,123.61,0.68]
[1766529395891,0.06,123.65,123.61,3.65862975]
[1766529396407,0.06,123.65,123.62,0.68]
[1766529399105,28.36372682,123.66,123.63,0.68]
[1766529399489,28.36372682,123.66,123.62,2.97862975]
[1766529399690,8.14700355,123.66,123.63,0.68]
[1766529400002,8.08700355,123.66,123.63,0.68]
[1766529400390,8.14700355,123.66,123.63,0.68]
[1766529401508,8.14700355,123.66,123.61,2.97862975]
[1766529401509,8.08700355,123.66,123.62,0.68]
[1766529401689,0.06,123.65,123.62,0.68]
[1766529402085,8.14700355,123.66,123.62,0.68]
[1766529402811,11.1256333,123.66,123.62,0.68]
[1766529403795,8.14700355,123.66,123.62,0.68]
[1766529403999,11.1256333,123.66,123.62,0.68]
[1766529405222,11.1256333,123.66,123.63,0.68]
[1766529405223,8.14700355,123.66,123.63,0.68]
[1766529407622,8.08700355,123.66,123.63,0.68]
[1766529408103,8.14700355,123.66,123.63,0.68]
[1766529409224,8.08700355,123.66,123.63,0.68]
[1766529409400,8.0857079,123.68,123.65,0.68]
[1766529409719,8.0849019,123.69,123.65,0.68]
[1766529409901,8.0849019,123.69,123.67,0.68]
[1766529411125,108.31378262,123.7,123.67,0.68]
[1766529411513,108.25378262,123.7,123.67,0.68]
[1766529412425,3.03862975,123.69,123.65,0.68]
[1766529412826,0.06,123.69,123.65,2.97862975]
[1766529413027,0.06,123.69,123.66,0.68]
[1766529414715,8.1441976,123.7,123.66,0.68]
[1766529414913,3.03862975,123.7,123.66,0.68]
[1766529415507,0.06,123.7,123.66,0.68]
[1766529415812,3.03862975,123.7,123.66,0.68]
[1766529416214,0.06,123.7,123.66,0.68]
[1766529416513,3.03862975,123.7,123.66,0.68]
[1766529416834,0.06,123.7,123.66,0.68]
[1766529417134,11.12322293,123.7,123.66,0.68]
[1766529417632,25.56533327,123.72,123.66,11.06494452]
[1766529417844,25.19767296,123.72,123.68,0.68]
[1766529418410,25.25767296,123.72,123.68,0.68]
[1766529419016,18.5806752,123.72,123.68,2.97862975]
[1766529419217,18.5806752,123.72,123.69,0.68]
[1766529420546,18.5206752,123.72,123.69,0.68]
[1766529420915,18.5806752,123.72,123.69,0.68]
[1766529422339,18.5206752,123.72,123.69,0.68]
[1766529422939,21.55930495,123.72,123.69,0.68]
[1766529423148,18.5806752,123.72,123.69,0.68]
[1766529423441,21.55930495,123.72,123.69,0.68]
[1766529424120,8.08300224,123.72,123.69,0.68]
[1766529424438,31.32631672,123.73,123.69,0.68]
[1766529425438,2.97862975,123.72,123.69,0.68]
[1766529426641,11.06184585,123.72,123.69,0.68]
[1766529426848,25.19767296,123.74,123.7,2.97862975]
[1766529427041,8.14015513,123.76,123.72,3.68862975]
[1766529427341,41.75746575,123.76,123.72,0.71]
[1766529428042,1.90328519,123.76,123.71,0.71]
[1766529428246,1.90328519,123.76,123.69,43.05645566]
[1766529428247,1.90328519,123.76,123.72,0.71]
[1766529428936,9.98363857,123.76,123.72,0.71]
[1766529429115,9.98363857,123.76,123.72,1.90328519]
[1766529429116,8.08035338,123.76,123.72,1.90328519]
[1766529429318,9.98363857,123.76,123.74,0.71]
[1766529429542,20.42131153,123.76,123.74,0.71]
[1766529429835,18.51802634,123.76,123.74,0.71]
[1766529432345,2.59328519,123.76,123.71,1.90328519]
[1766529433234,8.77033071,123.76,123.71,9.98650499]
[1766529433437,8.77033071,123.76,123.72,1.90328519]
[1766529434346,8.77033071,123.76,123.72,2.59328519]
[1766529434845,8.77033071,123.76,123.73,2.59328519]
[1766529435945,8.77033071,123.76,123.73,0.69]
[1766529437747,0.2,123.77,123.74,2.59328519]
[1766529438248,0.2,123.77,123.74,0.69]
[1766529439149,19.40613811,123.79,123.76,0.69]
[1766529439354,21.3094233,123.79,123.75,0.49]
[1766529439649,19.40613811,123.79,123.75,0.49]
[1766529439820,21.3094233,123.79,123.75,0.49]
[1766529440024,19.40613811,123.79,123.75,0.49]
[1766529440225,21.3094233,123.79,123.75,0.49]
[1766529440425,8.76887108,123.78,123.75,0.49]
[1766529441220,12.54095815,123.79,123.76,0.59]
[1766529441221,10.63767296,123.79,123.76,0.59]
[1766529442062,20.61917413,123.79,123.76,0.59]
[1766529443230,19.40588894,123.79,123.76,0.59]
[1766529443438,21.30917413,123.79,123.76,0.59]
[1766529443961,2.59328519,123.78,123.74,0.59]
[1766529444331,0.69,123.77,123.74,0.59]
[1766529445155,2.61328519,123.76,123.72,0.59]
[1766529445357,20.19819236,123.78,123.69,8.67437446]
[1766529445358,2.61328519,123.74,123.69,8.67437446]
[1766529445538,2.61328519,123.74,123.7,0.59]
[1766529446039,0.71,123.74,123.7,2.49328519]
[1766529446442,0.71,123.74,123.71,2.49328519]
[1766529446950,10.43767296,123.75,123.71,2.49328519]
[1766529446951,11.14767296,123.75,123.71,2.49328519]
[1766529447957,21.13237277,123.75,123.71,0.59]
[1766529448625,19.22908758,123.75,123.71,0.59]
[1766529448830,21.13237277,123.75,123.71,0.59]
[1766529450262,10.43767296,123.75,123.72,0.59]
[1766529452563,8.79054513,123.76,123.73,0.59]
[1766529452749,0.71,123.76,123.73,0.59]
[1766529453470,20.39661407,123.79,123.74,1.90328519]
[1766529453471,8.9882355,123.79,123.74,1.90328519]
[1766529453660,0.2,123.79,123.75,1.90328519]
[1766529453861,0.2,123.79,123.75,14.76]
[1766529454045,0.71,123.78,123.74,1.90328519]
[1766529454372,0.71,123.78,123.74,16.66328519]
[1766529454742,0.71,123.78,123.74,24.74419819]
[1766529455253,2.61328519,123.77,123.74,14.76]
[1766529455454,2.61328519,123.77,123.73,22.84201148]
[1766529456870,0.71,123.77,123.73,22.84201148]
[1766529457044,9.98294285,123.77,123.73,22.84201148]
[1766529457252,0.67,123.76,123.73,14.76]
[1766529457549,0.67,123.76,123.72,9.98591389]
[1766529461245,0.67,123.76,123.73,1.90328519]
[1766529462081,8.75015869,123.76,123.72,9.98591389]
[1766529462378,8.75015869,123.76,123.72,1.90328519]
[1766529462583,0.69,123.75,123.72,1.90328519]
[1766529462941,0.69,123.75,123.71,24.74640275]
[1766529464978,0.69,123.77,123.73,1.90328519]
[1766529465778,0.69,123.77,123.73,9.98532878]
[1766529466684,0.69,123.77,123.73,8.08204359]
[1766529466861,0.69,123.77,123.73,9.98532878]
[1766529470492,0.69,123.77,123.73,8.08204359]
[1766529470692,0.69,123.77,123.73,9.98532878]
[1766529472293,0.69,123.75,123.69,20.21139337]
[1766529472468,0.69,123.75,123.7,1.90328519]
[1766529472785,0.69,123.75,123.71,1.90328519]
[1766529473387,0.69,123.75,123.71,9.98670436]
[1766529476295,0.69,123.75,123.7,8.08407437]
[1766529476780,0.69,123.75,123.71,1.90328519]
[1766529479205,0.69,123.78,123.74,1.90328519]
[1766529479408,0.89,123.79,123.76,1.90328519]
[1766529479702,0.89,123.79,123.75,1.90328519]
[1766529479903,0.2,123.79,123.75,1.90328519]
[1766529480092,0.69,123.78,123.75,1.90328519]
[1766529480502,0.69,123.78,123.75,9.98407347]
[1766529480816,0.69,123.83,123.77,1.90328519]
[1766529481124,0.69,123.83,123.78,14.76]
[1766529481407,0.69,123.85,123.82,1.90328519]
[1766529481609,0.69,123.84,123.78,14.76]
[1766529481770,0.69,123.84,123.8,1.90328519]
[1766529482902,0.69,123.87,123.83,1.90328519]
[1766529483313,11.12767296,123.86,123.83,1.90328519]
[1766529484197,10.43767296,123.86,123.78,15.56788495]
[1766529484382,0.69,123.85,123.81,1.90328519]
[1766529485307,0.69,123.85,123.81,9.98008848]
[1766529486007,0.69,123.85,123.82,1.90328519]
[1766529486891,0.69,123.85,123.83,1.90328519]
[1766529487216,0.72,123.86,123.84,1.90328519]
[1766529487583,0.72,123.86,123.83,1.90328519]
[1766529488082,0.72,123.86,123.81,8.07689201]
[1766529488375,0.72,123.86,123.84,1.90328519]
[1766529489003,0.72,123.86,123.83,1.90328519]
[1766529489218,0.72,123.86,123.84,1.90328519]
[1766529490087,0.72,123.86,123.84,2.96846813]
[1766529491283,0.72,123.86,123.83,2.96846813]
[1766529491484,18.51131952,123.86,123.81,8.07665005]
[1766529491696,0.72,123.85,123.82,2.96846813]
[1766529492010,0.72,123.85,123.82,11.04470156]
[1766529492215,0.72,123.85,123.83,2.96846813]
[1766529492509,11.15767296,123.86,123.83,2.96846813]
[1766529492689,0.72,123.86,123.83,8.07546352]
[1766529493005,0.72,123.87,123.84,2.96846813]
[1766529493214,0.72,123.87,123.85,2.96846813]
[1766529493608,0.72,123.87,123.84,2.96846813]
[1766529495892,10.43767296,123.88,123.85,11.04275153]
[1766529496289,0.72,123.87,123.82,14.76]
[1766529496492,0.72,123.85,123.8,10.43767296]
[1766529496699,0.72,123.85,123.81,2.96846813]
[1766529497316,0.72,123.85,123.81,11.04507367]
[1766529497711,0.72,123.85,123.82,11.04459591]
[1766529498393,0.72,123.85,123.82,8.0762278]
[1766529498799,0.72,123.85,123.82,11.04469593]
[1766529500598,0.72,123.85,123.81,8.07689201]
[1766529500804,0.72,123.85,123.82,2.96846813]
[1766529501616,0.72,123.85,123.81,8.07689201]
[1766529501808,0.72,123.85,123.82,11.04450316]
[1766529503218,0.72,123.86,123.82,11.04450316]
[1766529505120,0.72,123.85,123.81,8.07684157]
[1766529505621,0.72,123.85,123.79,17.70846813]
[1766529505622,0.72,123.84,123.79,17.70846813]
[1766529505994,0.72,123.84,123.79,22.81777259]
[1766529506194,0.72,123.84,123.79,25.78624072]
[1766529507223,0.72,123.83,123.79,14.74]
[1766529507521,0.72,123.82,123.79,14.74]
[1766529508517,0.72,123.82,123.78,11.04700271]
[1766529508719,0.72,123.82,123.79,8.07816566]
[1766529509299,0.72,123.82,123.78,11.04701903]
[1766529509644,0.72,123.81,123.78,11.04701903]
[1766529512725,0.72,123.81,123.77,25.78766256]
[1766529513024,0.72,123.81,123.78,2.96846813]
[1766529514130,0.72,123.81,123.78,11.04729011]
[1766529516939,0.72,123.81,123.78,8.07882198]
[1766529517237,0.68,123.84,123.78,28.2759459]
[1766529517439,0.68,123.84,123.81,2.96846813]
[1766529518837,0.68,123.84,123.81,11.04533496]
[1766529519443,8.75316798,123.87,123.83,2.96846813]
[1766529519731,0.68,123.87,123.83,2.96846813]
[1766529519937,0.68,123.87,123.84,2.96846813]
[1766529520120,0.68,123.88,123.83,14.74]
[1766529520328,0.68,123.88,123.84,2.96846813]
[1766529521332,0.68,123.88,123.83,25.78342477]
[1766529521535,0.68,123.88,123.84,8.07478057]
[1766529521838,0.68,123.88,123.84,11.0432487]
[1766529525738,0.86,123.89,123.84,8.07478057]
[1766529525939,0.86,123.89,123.87,2.96846813]
[1766529526318,0.2,123.9,123.88,2.96846813]
[1766529526611,0.2,123.9,123.89,2.96846813]
[1766529527244,0.2,123.9,123.88,11.04056697]
[1766529529942,0.2,123.9,123.89,2.96846813]
[1766529530333,0.2,123.9,123.88,2.96846813]
[1766529531250,0.66,123.92,123.87,28.25542907]
[1766529531546,0.66,123.92,123.89,2.96846813]
[1766529533027,0.66,123.92,123.89,11.0401442]
[1766529538356,0.66,123.92,123.9,2.96846813]
[1766529539151,0.66,123.92,123.87,28.25542907]
[1766529539342,0.66,123.92,123.9,2.96846813]
[1766529540841,0.66,123.92,123.87,28.25479779]
[1766529541047,0.66,123.92,123.88,2.96846813]
[1766529541647,0.66,123.91,123.87,11.04081658]
[1766529542232,28.24421803,123.92,123.84,0.80749354]
[1766529542432,0.66,123.89,123.84,2.96846813]
[1766529542745,0.66,123.89,123.83,34.9285206]
[1766529542746,0.66,123.89,123.85,2.96846813]
[1766529543244,0.66,123.89,123.85,11.04274003]
[1766529544028,0.66,123.88,123.85,11.04274003]
[1766529544743,30.0,123.87,123.85,11.04274003]
[1766529546824,8.07054994,123.91,123.86,2.96846813]
[1766529547024,0.7,123.9,123.86,2.96846813]
[1766529548145,0.7,123.9,123.85,20.18570851]
[1766529548339,0.7,123.9,123.86,2.96846813]
[1766529549964,0.7,123.9,123.86,11.04195076]
[1766529550633,0.7,123.91,123.87,2.96846813]
[1766529552036,0.7,123.91,123.87,1.89863023]
[1766529552835,0.7,123.91,123.87,8.07238326]
[1766529561551,0.7,123.91,123.87,9.97101349]
[1766529562958,0.7,123.9,123.87,9.97101349]
[1766529565470,0.7,123.9,123.87,8.07238326]
[1766529578893,0.7,123.92,123.87,30.15346283]
[1766529579209,0.7,123.92,123.88,14.74]
[1766529579410,0.7,123.92,123.88,16.63863023]
[1766529579922,10.43767296,123.93,123.88,16.63863023]
[1766529580128,0.7,123.94,123.9,1.89863023]
[1766529580508,0.7,123.94,123.9,16.63863023]
[1766529582832,0.7,123.94,123.91,8.07037365]
[1766529584722,0.7,123.96,123.92,1.89863023]
[1766529585027,0.9,123.97,123.94,1.89863023]
[1766529585213,0.9,123.97,123.94,16.63863023]
[1766529585819,0.2,123.98,123.95,1.89863023]
[1766529586030,0.2,123.98,123.97,1.89863023]
[1766529586237,1e-08,123.98,123.96,16.63863023]
[1766529586825,1e-08,123.98,123.97,8.06646769]
[1766529589413,1e-08,123.98,123.96,22.80703089]
[1766529591019,1e-08,123.98,123.95,8.06751512]
[1766529591223,0.7,123.97,123.93,14.74]
[1766529591433,0.7,123.97,123.94,8.06813963]
[1766529596246,1e-08,123.98,123.94,8.06813963]
[1766529596944,0.70000001,123.98,123.94,8.06813963]
[1766529599048,0.7,123.96,123.93,8.0687967]
[1766529600227,0.7,123.94,123.9,1.89863023]
[1766529600555,0.7,123.92,123.89,8.07160497]
[1766529600748,0.7,123.92,123.88,16.63863023]
[1766529601055,0.7,123.92,123.89,8.07138706]
[1766529601429,9.96452592,123.95,123.9,22.07616729]
[1766529601630,10.43767296,123.95,123.91,8.06998883]
[1766529602146,10.43767296,123.95,123.91,9.96861906]
[1766529602452,1e-08,123.98,123.93,2.59863023]
[1766529602640,10.43767297,123.98,123.93,2.59863023]
[1766529602837,10.43767297,123.98,123.93,0.7]
[1766529603037,10.43767297,123.98,123.94,0.7]
[1766529603244,1e-08,123.98,123.94,2.59863023]
[1766529603440,1e-08,123.98,123.95,2.59863023]
[1766529603842,1e-08,123.98,123.96,2.59863023]
[1766529604251,0.70000001,123.98,123.95,8.06776926]
[1766529604556,0.70000001,123.98,123.94,23.50807763]
[1766529604757,10.43767296,123.97,123.93,0.7]
[1766529604936,0.70000001,123.98,123.94,10.66677768]
[1766529605132,0.70000001,123.98,123.94,30.83782818]
[1766529605364,0.70000001,123.98,123.94,45.57782818]
[1766529606045,35.24083331,124.0,123.95,0.72]
[1766529606559,1.89863023,123.98,123.92,37.53240168]
[1766529606855,1.89863023,123.97,123.92,10.68815654]
[1766529607057,1.89863023,123.96,123.92,23.52952631]
[1766529607252,1.89863023,123.97,123.92,23.52952631]
[1766529607464,12.33630319,123.97,123.91,8.07016507]
[1766529607763,1.89863023,123.96,123.91,8.74016507]
[1766529607934,0.68,123.96,123.92,2.56863023]
[1766529608762,0.68,123.96,123.93,8.06903865]
[1766529609963,0.68,123.96,123.93,8.73903865]
[1766529610151,0.68,123.96,123.93,10.63766888]
[1766529610358,0.68,123.98,123.94,0.67]
[1766529610768,0.68,123.98,123.94,8.73784415]
[1766529611065,0.68,123.98,123.94,10.63647438]
[1766529611271,0.68,123.98,123.95,0.67]
[1766529611868,0.68,123.98,123.95,2.56863023]
[1766529612059,0.68,123.98,123.95,3.63295607]
[1766529613059,0.68,123.98,123.95,11.70024038]
[1766529614270,0.68,123.98,123.95,8.73728431]
[1766529618068,0.68,123.98,123.95,11.70024038]
[1766529618565,11.11767296,123.99,123.96,0.67]
[1766529618868,0.68,123.99,123.96,3.63295607]
[1766529619044,0.78000001,124.0,123.96,3.63295607]
[1766529619543,0.78000001,124.0,123.97,8.06646769]
[1766529620758,0.78000001,124.0,123.97,11.02942376]
[1766529620947,0.78000001,124.0,123.97,11.69942376]
[1766529623767,0.78000001,124.0,123.96,8.0668716]
[1766529623955,0.68,123.99,123.96,8.0668716]
[1766529624155,0.68,123.99,123.95,26.44043092]
[1766529624560,0.68,123.99,123.96,8.06711833]
[1766529625268,0.68,123.99,123.96,8.73711833]
[1766529626673,0.68,123.99,123.96,11.7000744]
[1766529627076,0.10000001,124.0,123.97,2.96295607]
[1766529627268,0.78000001,124.0,123.97,3.63295607]
[1766529627757,0.10000001,124.0,123.97,3.63295607]
[1766529628173,0.10000001,124.0,123.98,3.63295607]
[1766529628364,0.10000001,124.0,123.98,0.67]
[1766529628565,0.10000001,124.0,123.98,3.63295607]
[1766529629288,1e-08,124.0,123.99,8.06516654]
[1766529631679,1e-08,124.0,123.99,8.73516654]
[1766529633372,1e-08,124.0,123.99,8.06516654]
[1766529635390,1e-08,124.0,123.99,8.73516654]
[1766529635886,1e-08,124.0,123.99,8.06516654]
[1766529640774,0.69000001,124.0,123.99,8.06516654]
[1766529640971,0.69000001,124.0,123.98,8.06566507]
[1766529643504,0.69000001,124.0,123.97,8.06616222]
[1766529643688,0.69,123.99,123.96,8.06672485]
[1766529643888,0.69,123.99,123.95,23.45765055]
[1766529644294,0.69,123.99,123.95,8.73765055]
[1766529644824,0.69,123.98,123.95,8.06765055]
[1766529645271,0.69,123.97,123.92,23.80714759]
[1766529645471,0.69,123.97,123.92,38.52714759]
[1766529646402,0.69,123.97,123.93,8.0688674]
[1766529647999,3.65295607,123.97,123.93,8.0688674]
[1766529648208,0.69,123.96,123.93,8.0688674]
[1766529655190,0.69,123.96,123.93,11.03182347]
[1766529655718,0.69,123.96,123.93,8.0688674]
[1766529656419,0.69,123.96,123.93,8.7388674]
[1766529658918,0.69,123.96,123.93,8.0688674]
[1766529662423,0.69,123.96,123.92,26.42251693]
[1766529663923,0.69,123.96,123.92,23.45956086]
[1766529664220,0.69,123.96,123.92,8.06956086]
[1766529664406,0.69,123.95,123.91,26.44300626]
[1766529665323,0.69,123.95,123.92,3.63295607]
[1766529665523,0.69,123.95,123.92,11.70208518]
[1766529666621,0.69,123.95,123.92,8.73912911]
[1766529668235,0.69,123.95,123.91,8.07037365]
[1766529668525,0.71,123.94,123.9,8.73079983]
[1766529668825,0.71,123.93,123.89,23.47137898]
[1766529669231,0.71,123.93,123.89,15.4]
[1766529669531,0.71,123.93,123.89,23.47167284]
[1766529670329,0.71,123.92,123.89,0.66]
[1766529671835,0.71,123.92,123.89,8.73139321]
[1766529672814,9.96694673,123.94,123.9,0.66]
[1766529673036,0.71,123.93,123.9,0.66]
[1766529673334,0.71,123.93,123.89,0.66]
[1766529673522,0.71,123.92,123.89,0.66]
[1766529673726,0.71,123.94,123.91,2.55831011]
[1766529673915,10.43767296,123.95,123.92,0.66]
[1766529674118,0.71,123.96,123.92,0.66]
[1766529674119,0.71,123.96,123.93,0.66]
[1766529674512,0.2,124.09,123.96,0.66]
[1766529674743,0.91,124.04,124.0,0.66]
[1766529674923,0.91,124.04,124.01,0.66]
[1766529675239,0.2,124.04,124.01,0.66]
[1766529675622,0.2,124.04,124.01,2.55831011]
[1766529676441,0.2,124.04,124.02,1.89831011]
[1766529676824,0.2,124.04,124.01,0.66]
[1766529677028,0.2,124.04,124.01,10.62212827]
[1766529679249,0.71,124.03,123.99,2.55831011]
[1766529680148,0.71,124.03,124.0,0.66]
[1766529684943,0.71,124.03,124.0,8.72447172]
[1766529685253,0.71,124.03,124.0,10.62278183]
[1766529688258,0.91,124.04,124.01,0.66]
[1766529692658,0.91,124.04,124.01,2.55831011]
[1766529693031,0.2,124.04,124.02,0.66]
[1766529693236,0.2,124.04,124.03,0.66]
[1766529694968,0.2,124.04,124.02,0.66]
[1766529697481,0.2,124.04,124.02,8.72314567]
[1766529699063,0.2,124.04,124.02,10.62145578]
[1766529701379,0.2,124.04,124.02,8.72314567]
[1766529709277,0.2,124.04,124.02,10.62145578]
[1766529710794,0.2,124.04,124.03,0.67]
[1766529713295,0.2,124.04,124.02,8.73314567]
[1766529713790,0.2,124.04,124.02,8.06314567]
[1766529713997,0.2,124.04,124.03,0.67]
[1766529716492,0.2,124.04,124.02,10.63145578]
[1766529720403,0.68,124.03,124.01,8.06342889]
[1766529720576,0.88,124.04,124.01,23.45342889]
[1766529720772,0.88,124.04,124.02,0.67]
[1766529723679,0.88,124.04,124.01,25.351739]
[1766529724307,0.88,124.04,124.01,24.681739]
[1766529724494,0.88,124.04,124.01,25.351739]
[1766529727905,10.43767296,124.03,124.01,14.72]
[1766529728200,10.43767296,124.03,123.97,17.32831011]
[1766529728201,0.71,124.02,123.97,17.32831011]
[1766529728394,0.71,124.02,123.98,0.71]
[1766529729699,0.71,124.02,123.98,2.60831011]
[1766529730007,0.71,124.02,123.98,0.71]
[1766529732606,8.0634403,124.02,123.98,0.71]
[1766529732803,0.71,124.01,123.98,0.71]
[1766529733881,8.4134403,124.02,123.99,0.71]
[1766529734114,0.71,124.02,123.99,0.71]
[1766529734284,0.71,124.02,124.0,0.71]
[1766529738504,18.69982482,124.04,124.0,3.67136939]
[1766529738681,0.71,124.03,124.0,0.71]
[1766529750824,11.34767296,124.04,124.01,0.71]
[1766529751314,10.63767296,124.04,124.01,0.71]